fUST/lending_fUST_20250220
["ID","MTS","AMOUNT","RATE_DAILY","PERIOD"]
[353762816,1740017441144,-1171.69,0.00013863,2]
[353762817,1740017441153,-495.47,0.00013863,2]
[353762818,1740017441163,-871.97,0.00013863,2]
[353762819,1740017441172,-517.50400688,0.00013863,2]
[353762820,1740017441182,-500.0,0.00013863,2]
[353762821,1740017441191,-316.33288857,0.00013863,2]
[353762822,1740017441200,-555.27669567,0.00013863,2]
[353762823,1740017441210,-500.0,0.00013863,2]
[353762824,1740017441219,-500.0,0.00013863,2]
[353762825,1740017441228,-500.0,0.00013863,2]
[353762826,1740017441238,-500.0,0.00013863,2]
[353762827,1740017441247,-500.0,0.00013863,2]
[353762828,1740017441257,-717.77,0.00013863,2]
[353762829,1740017441266,-567.46,0.00013863,2]
[353762830,1740017441280,-234.85899521,0.00013863,2]
[353762831,1740017441291,-507.34785334,0.00013863,2]
[353762832,1740017441301,-500.0,0.00013863,2]
[353762833,1740017441311,-500.0,0.00013863,2]
[353762834,1740017441321,-500.0,0.00013863,2]
[353762835,1740017441330,-500.0,0.00013863,2]
[353762836,1740017441339,-500.0,0.00013863,2]
[353762837,1740017441348,-3280.49,0.00013863,2]
[353762838,1740017441358,-506.61806479,0.00013863,2]
[353762839,1740017441367,-504.88630154,0.00013863,2]
[353762840,1740017441377,-500.0,0.00013863,2]
[353762841,1740017441386,-1035.0,0.00013863,2]
[353762842,1740017441396,-814.25,0.00013863,2]
[353762843,1740017441405,-507.14127873,0.00013863,2]
[353762844,1740017441415,-500.0,0.00013863,2]
[353762845,1740017441425,-500.0,0.00013863,2]
[353762846,1740017441434,-1090.48,0.00013863,2]
[353762847,1740017441443,-500.0,0.00013863,2]
[353762848,1740017441452,-508.46480841,0.00013863,2]
[353762849,1740017441462,-500.0,0.00013863,2]
[353762850,1740017441471,-505.07,0.00013863,2]
[353762851,1740017441480,-2436.53,0.00013863,2]
[353762852,1740017441490,-554.57,0.00013863,2]
[353762853,1740017441499,-8473.28,0.00013863,2]
[353762854,1740017441509,-500.0,0.00013863,2]
[353762855,1740017441518,-500.0,0.00013863,2]
[353762856,1740017441528,-500.0,0.00013863,2]
[353762857,1740017441538,-179.67658215,0.0001392,2]
[353762858,1740017441548,-668.88,0.00013943,2]
[353762859,1740017441557,-668.88,0.00013944,2]
[353762860,1740017441567,-500.0,0.00013945,2]
[353762861,1740017441577,-500.0,0.00013945,2]
[353762862,1740017441587,-500.0,0.00013945,2]
[353762863,1740017441596,-287.42885294,0.00013945,2]
[353762864,1740017441606,-500.0,0.00013945,2]
[353762865,1740017441615,-500.0,0.00013945,2]
[353762866,1740017441625,-500.0,0.00013945,2]
[353762867,1740017441634,-500.0,0.00013945,2]
[353762868,1740017441643,-500.0,0.00013945,2]
[353762869,1740017441653,-287.41394962,0.00013945,2]
[353762870,1740017441662,-500.0,0.00013945,2]
[353762871,1740017441671,-500.0,0.00013945,2]
[353762872,1740017441681,-500.0,0.00013945,2]
[353762873,1740017441690,-500.0,0.00013945,2]
[353762874,1740017441699,-500.0,0.00013945,2]
[353762875,1740017441709,-450.5749384,0.00013945,2]
[353762876,1740017441719,-500.0,0.00013945,2]
[353762877,1740017441728,-500.0,0.00013945,2]
[353762878,1740017441738,-507.53,0.00013945,2]
[353762879,1740017441747,-500.0,0.00013945,2]
[353762880,1740017441758,-500.0,0.00013945,2]
[353762881,1740017441771,-735.06,0.00013945,2]
[353762882,1740017441781,-1171.69,0.00013945,2]
[353762883,1740017441791,-871.97,0.00013945,2]
[353762884,1740017441800,-500.0,0.00013945,2]
[353762885,1740017441810,-500.0,0.00013945,2]
[353762886,1740017441820,-523.84,0.00013945,2]
[353762887,1740017441829,-500.0,0.00013945,2]
[353762888,1740017441839,-717.77,0.00013945,2]
[353762889,1740017441849,-567.46,0.00013945,2]
[353762890,1740017441859,-328.06384719,0.00013945,2]
[353762891,1740017441869,-500.0,0.00013945,2]
[353762892,1740017441879,-500.0,0.00013945,2]
[353762893,1740017441888,-500.0,0.00013945,2]
[353762894,1740017441898,-3280.49,0.00013945,2]
[353762895,1740017441907,-500.0,0.00013945,2]
[353762896,1740017441917,-1035.0,0.00013945,2]
[353762897,1740017441927,-387.67812313,0.00013945,2]
[353762898,1740017442084,-426.57187687,0.00013945,2]
[353762899,1740017442094,-500.0,0.00013945,2]
[353762900,1740017442104,-1090.48,0.00013945,2]
[353762901,1740017442114,-500.0,0.00013945,2]
[353762902,1740017442123,-500.0,0.00013945,2]
[353762903,1740017442133,-505.07,0.00013945,2]
[353762904,1740017442143,-2436.53,0.00013945,2]
[353762905,1740017442152,-554.57,0.00013945,2]
[353762906,1740017442162,-8473.28,0.00013945,2]
[353762907,1740017442174,-190.7,0.00013945,2]
[353762908,1740017442184,-500.0,0.00013945,2]
[353762909,1740017442194,-500.0,0.00013945,2]
[353762910,1740017442204,-153.710822,0.00014,2]
[353762911,1740017442213,-668.88,0.00014025,2]
[353762912,1740017442223,-668.88,0.00014026,2]
[353762913,1740017442232,-500.0,0.00014027,2]
[353762914,1740017442242,-500.0,0.00014027,2]
[353762915,1740017442251,-500.0,0.00014027,2]
[353762916,1740017442261,-348.36352765,0.00014027,2]
[353762917,1740017442271,-500.0,0.00014027,2]
[353762918,1740017442280,-507.53,0.00014027,2]
[353762919,1740017442290,-500.0,0.00014027,2]
[353762920,1740017442300,-500.0,0.00014027,2]
[353762921,1740017442310,-735.06,0.00014027,2]
[353762922,1740017442319,-1171.69,0.00014027,2]
[353762923,1740017442328,-871.97,0.00014027,2]
[353762925,1740017442338,-500.0,0.00014027,2]
[353762927,1740017442347,-209.16,0.00014027,2]
[353762928,1740017442357,-500.0,0.00014027,2]
[353762929,1740017442367,-717.77,0.00014027,2]
[353762931,1740017442376,-567.46,0.00014027,2]
[353762933,1740017442386,-500.0,0.00014027,2]
[353762934,1740017442395,-500.0,0.00014027,2]
[353762935,1740017442405,-500.0,0.00014027,2]
[353762936,1740017442415,-3280.49,0.00014027,2]
[353762937,1740017442425,-500.0,0.00014027,2]
[353762938,1740017442435,-1035.0,0.00014027,2]
[353762939,1740017442444,-814.25,0.00014027,2]
[353762941,1740017442455,-364.98223085,0.00014027,2]
[353762943,1740017442465,-1090.48,0.00014027,2]
[353762944,1740017442475,-500.0,0.00014027,2]
[353762945,1740017442485,-500.0,0.00014027,2]
[353762946,1740017442495,-505.07,0.00014027,2]
[353762947,1740017442504,-2436.53,0.00014027,2]
[353762951,1740017442638,-554.57,0.00014027,2]
[353762952,1740017442649,-5067.20052939,0.00014027,2]
[353762953,1740017442662,-730.19187326,0.00014027,2]
[353762954,1740017442675,-2675.88759735,0.00014027,2]
[353762956,1740017442685,-500.0,0.00014027,2]
[353762957,1740017442695,-500.0,0.00014027,2]
[353762958,1740017442705,-500.0,0.00014079,2]
[353762959,1740017442715,-500.0,0.00014079,2]
[353762960,1740017442724,-500.0,0.000141,2]
[353762962,1740017442734,-668.88,0.00014108,2]
[353762964,1740017442743,-500.0,0.00014109,2]
[353762966,1740017442752,-500.0,0.00014109,2]
[353762968,1740017442762,-317.76106853,0.00014109,2]
[353762970,1740017442776,-500.0,0.00014109,2]
[353762972,1740017442785,-507.53,0.00014109,2]
[353762974,1740017442794,-500.0,0.00014109,2]
[353762975,1740017442805,-500.0,0.00014109,2]
[353762976,1740017442814,-735.06,0.00014109,2]
[353762977,1740017442824,-1171.69,0.00014109,2]
[353762978,1740017442834,-871.97,0.00014109,2]
[353762979,1740017442844,-500.0,0.00014109,2]
[353762980,1740017442853,-500.0,0.00014109,2]
[353762981,1740017442863,-717.77,0.00014109,2]
[353762982,1740017442873,-567.46,0.00014109,2]
[353762983,1740017442883,-500.0,0.00014109,2]
[353762984,1740017442892,-500.0,0.00014109,2]
[353762985,1740017442902,-500.0,0.00014109,2]
[353762986,1740017442912,-3280.49,0.00014109,2]
[353762987,1740017442923,-500.0,0.00014109,2]
[353762988,1740017442932,-1035.0,0.00014109,2]
[353762989,1740017442942,-814.25,0.00014109,2]
[353762990,1740017442951,-1090.48,0.00014109,2]
[353762991,1740017442961,-500.0,0.00014109,2]
[353762992,1740017442971,-500.0,0.00014109,2]
[353762993,1740017442980,-505.07,0.00014109,2]
[353762994,1740017442991,-2436.53,0.00014109,2]
[353762995,1740017443000,-554.57,0.00014109,2]
[353762996,1740017443010,-8473.28,0.00014109,2]
[353762997,1740017443020,-500.0,0.00014109,2]
[353762998,1740017443030,-500.0,0.00014109,2]
[353762999,1740017443043,-668.88,0.0001417,2]
[353763000,1740017443055,-7438.69753278,0.00014171,2]
[353763002,1740017443070,-5687.07333424,0.0001418,2]
[353763003,1740017443081,-668.88,0.0001419,2]
[353763004,1740017443092,-668.88,0.0001419,2]
[353763005,1740017443101,-500.0,0.00014191,2]
[353763006,1740017443111,-500.0,0.00014191,2]
[353763007,1740017443120,-500.0,0.00014191,2]
[353763008,1740017443130,-507.53,0.00014191,2]
[353763009,1740017443139,-607.24192858,0.00014191,2]
[353763010,1740017443148,-500.0,0.00014191,2]
[353763011,1740017443172,-735.06,0.00014191,2]
[353763012,1740017443182,-1171.69,0.00014191,2]
[353763013,1740017443192,-871.97,0.00014191,2]
[353763014,1740017443201,-500.0,0.00014191,2]
[353763015,1740017443211,-500.0,0.00014191,2]
[353763016,1740017443220,-717.77,0.00014191,2]
[353763017,1740017443230,-567.46,0.00014191,2]
[353763018,1740017443240,-500.0,0.00014191,2]
[353763019,1740017443250,-500.0,0.00014191,2]
[353763020,1740017443259,-500.0,0.00014191,2]
[353763021,1740017443269,-3280.49,0.00014191,2]
[353763022,1740017443279,-500.0,0.00014191,2]
[353763023,1740017443290,-1035.0,0.00014191,2]
[353763024,1740017443300,-814.25,0.00014191,2]
[353763025,1740017443309,-1090.48,0.00014191,2]
[353763026,1740017443319,-156.7748961,0.00014191,2]
[353763027,1740017443329,-500.0,0.00014191,2]
[353763028,1740017443338,-505.07,0.00014191,2]
[353763029,1740017443347,-2436.53,0.00014191,2]
[353763030,1740017443357,-554.57,0.00014191,2]
[353763031,1740017443366,-8473.28,0.00014191,2]
[353763032,1740017443376,-500.0,0.00014191,2]
[353763033,1740017443385,-500.0,0.00014191,2]
[353763034,1740017443395,-557.1710486,0.00014219,2]
[353763035,1740017443405,-560.9271802,0.00014219,2]
[353763036,1740017443414,-557.1188801,0.00014219,2]
[353763037,1740017443425,-557.1188801,0.00014219,2]
[353763038,1740017443435,-557.1188801,0.00014219,2]
[353763039,1740017443444,-557.1188801,0.00014219,2]
[353763040,1740017443454,-557.1188801,0.00014219,2]
[353763041,1740017443463,-557.1188801,0.00014219,2]
[353763042,1740017443473,-557.1188801,0.00014219,2]
[353763043,1740017443483,-557.1188801,0.00014219,2]
[353763044,1740017443492,-557.1188801,0.00014219,2]
[353763045,1740017443502,-557.1188801,0.00014219,2]
[353763046,1740017443511,-557.1188801,0.00014219,2]
[353763047,1740017443521,-557.1188801,0.00014219,2]
[353763048,1740017443530,-557.1188801,0.00014219,2]
[353763049,1740017443539,-557.1188801,0.00014219,2]
[353763050,1740017443549,-522.4466952,0.00014219,2]
[353763051,1740017443558,-557.1188801,0.00014219,2]
[353763052,1740017443567,-557.1188801,0.00014219,2]
[353763053,1740017443576,-557.1188801,0.00014219,2]
[353763054,1740017443586,-557.1188801,0.00014219,2]
[353763055,1740017443595,-557.1188801,0.00014219,2]
[353763056,1740017443605,-557.1188801,0.00014219,2]
[353763057,1740017443614,-557.1188801,0.00014219,2]
[353763058,1740017443623,-557.1188801,0.00014219,2]
[353763059,1740017443632,-557.1188801,0.00014219,2]
[353763060,1740017443641,-1007.9635722,0.00014247,2]
[353763061,1740017443651,-500.0,0.00014247,2]
[353763062,1740017443660,-668.88,0.00014272,2]
[353763063,1740017443670,-668.88,0.00014272,2]
[353763064,1740017443680,-564.00423042,0.00014273,2]
[353763065,1740017443689,-500.0,0.00014273,2]
[353763066,1740017443698,-500.0,0.00014273,2]
[353763067,1740017443707,-507.53,0.00014273,2]
[353763068,1740017443717,-500.0,0.00014273,2]
[353763069,1740017443726,-735.06,0.00014273,2]
[353763070,1740017443746,-1171.69,0.00014273,2]
[353763071,1740017443756,-871.97,0.00014273,2]
[353763072,1740017443770,-500.0,0.00014273,2]
[353763073,1740017443780,-500.0,0.00014273,2]
[353763074,1740017443789,-717.77,0.00014273,2]
[353763075,1740017443799,-567.46,0.00014273,2]
[353763076,1740017443810,-500.0,0.00014273,2]
[353763077,1740017443819,-500.0,0.00014273,2]
[353763078,1740017443829,-500.0,0.00014273,2]
[353763079,1740017443839,-3280.49,0.00014273,2]
[353763080,1740017443851,-500.0,0.00014273,2]
[353763081,1740017443860,-1035.0,0.00014273,2]
[353763082,1740017443872,-814.25,0.00014273,2]
[353763083,1740017443882,-1090.48,0.00014273,2]
[353763084,1740017443892,-500.0,0.00014273,2]
[353763085,1740017443902,-505.07,0.00014273,2]
[353763086,1740017443912,-2436.53,0.00014273,2]
[353763087,1740017443925,-554.57,0.00014273,2]
[353763088,1740017443934,-8473.28,0.00014273,2]
[353763089,1740017443944,-500.0,0.00014273,2]
[353763090,1740017443954,-500.0,0.00014273,2]
[353763091,1740017443964,-668.88,0.00014355,2]
[353763092,1740017443974,-595.16121268,0.00014356,2]
[353763093,1740017443984,-500.0,0.00014356,2]
[353763094,1740017443994,-507.53,0.00014356,2]
[353763095,1740017444004,-500.0,0.00014356,2]
[353763096,1740017444013,-735.06,0.00014356,2]
[353763097,1740017444023,-1171.69,0.00014356,2]
[353763098,1740017444033,-871.97,0.00014356,2]
[353763099,1740017444043,-500.0,0.00014356,2]
[353763100,1740017444052,-537.21586421,0.00014356,2]
[353763101,1740017444062,-717.77,0.00014356,2]
[353763102,1740017444072,-567.46,0.00014356,2]
[353763103,1740017444082,-500.0,0.00014356,2]
[353763104,1740017444091,-500.0,0.00014356,2]
[353763105,1740017444101,-500.0,0.00014356,2]
[353763106,1740017444111,-3280.49,0.00014356,2]
[353763107,1740017444121,-500.0,0.00014356,2]
[353763108,1740017444131,-1035.0,0.00014356,2]
[353763109,1740017444140,-814.25,0.00014356,2]
[353763110,1740017444150,-1090.48,0.00014356,2]
[353763111,1740017444160,-500.0,0.00014356,2]
[353763112,1740017444172,-505.07,0.00014356,2]
[353763113,1740017444184,-2436.53,0.00014356,2]
[353763114,1740017444195,-554.57,0.00014356,2]
[353763115,1740017444208,-8473.28,0.00014356,2]
[353763116,1740017444219,-500.0,0.00014356,2]
[353763117,1740017444231,-500.0,0.00014356,2]
[353763118,1740017444241,-668.88,0.00014374,2]
[353763119,1740017444251,-668.88,0.00014374,2]
[353763120,1740017444262,-668.88,0.00014374,2]
[353763121,1740017444273,-668.88,0.00014374,2]
[353763122,1740017444283,-669.07638529,0.00014374,2]
[353763123,1740017444294,-205.0,0.00014375,2]
[353763124,1740017444304,-205.0,0.00014375,2]
[353763125,1740017444315,-205.0,0.00014375,2]
[353763126,1740017444324,-205.0,0.00014375,2]
[353763127,1740017444334,-205.0,0.00014375,2]
[353763128,1740017444347,-205.0,0.00014375,2]
[353763129,1740017444357,-205.0,0.00014375,2]
[353763130,1740017444366,-205.0,0.00014375,2]
[353763131,1740017444376,-205.0,0.00014375,2]
[353763132,1740017444386,-205.0,0.00014375,2]
[353763133,1740017444396,-205.0,0.00014375,2]
[353763134,1740017444406,-205.0,0.00014375,2]
[353763135,1740017444416,-205.0,0.00014375,2]
[353763136,1740017444427,-205.0,0.00014375,2]
[353763137,1740017444436,-205.0,0.00014375,2]
[353763138,1740017444447,-205.0,0.00014375,2]
[353763139,1740017444456,-205.0,0.00014375,2]
[353763140,1740017444466,-205.0,0.00014375,2]
[353763141,1740017444475,-223.0,0.00014375,2]
[353763142,1740017444485,-223.0,0.00014375,2]
[353763143,1740017444494,-223.0,0.00014375,2]
[353763144,1740017444504,-223.0,0.00014375,2]
[353763145,1740017444514,-223.0,0.00014375,2]
[353763146,1740017444523,-223.0,0.00014375,2]
[353763147,1740017444532,-223.0,0.00014375,2]
[353763148,1740017444542,-223.0,0.00014375,2]
[353763149,1740017444553,-223.0,0.00014375,2]
[353763150,1740017444563,-223.0,0.00014375,2]
[353763151,1740017444572,-223.0,0.00014375,2]
[353763152,1740017444582,-223.0,0.00014375,2]
[353763153,1740017444592,-223.0,0.00014375,2]
[353763154,1740017444602,-223.0,0.00014375,2]
[353763155,1740017444611,-223.0,0.00014375,2]
[353763156,1740017444621,-223.0,0.00014375,2]
[353763157,1740017444630,-223.0,0.00014375,2]
[353763158,1740017444641,-205.0,0.00014375,2]
[353763159,1740017444650,-205.0,0.00014375,2]
[353763160,1740017444660,-205.0,0.00014375,2]
[353763161,1740017444671,-205.0,0.00014375,2]
[353763162,1740017444682,-205.0,0.00014375,2]
[353763163,1740017444691,-205.0,0.00014375,2]
[353763164,1740017444701,-205.0,0.00014375,2]
[353763165,1740017444711,-205.0,0.00014375,2]
[353763166,1740017444720,-205.0,0.00014375,2]
[353763167,1740017444731,-205.0,0.00014375,2]
[353763168,1740017444740,-205.0,0.00014375,2]
[353763169,1740017444750,-205.0,0.00014375,2]
[353763170,1740017444760,-205.0,0.00014375,2]
[353763171,1740017444773,-205.0,0.00014375,2]
[353763172,1740017444783,-223.0,0.00014375,2]
[353763173,1740017444792,-223.0,0.00014375,2]
[353763174,1740017444802,-223.0,0.00014375,2]
[353763175,1740017444812,-223.0,0.00014375,2]
[353763176,1740017444822,-223.0,0.00014375,2]
[353763177,1740017444831,-223.0,0.00014375,2]
[353763178,1740017444841,-223.0,0.00014375,2]
[353763179,1740017444850,-223.0,0.00014375,2]
[353763180,1740017444860,-223.0,0.00014375,2]
[353763181,1740017444870,-223.0,0.00014375,2]
[353763182,1740017444880,-223.0,0.00014375,2]
[353763183,1740017444890,-223.0,0.00014375,2]
[353763184,1740017444900,-223.0,0.00014375,2]
[353763185,1740017444910,-223.0,0.00014375,2]
[353763186,1740017444921,-205.0,0.00014375,2]
[353763187,1740017444931,-205.0,0.00014375,2]
[353763188,1740017444940,-205.0,0.00014375,2]
[353763189,1740017444950,-205.0,0.00014375,2]
[353763190,1740017444960,-205.0,0.00014375,2]
[353763191,1740017444970,-205.0,0.00014375,2]
[353763192,1740017444980,-205.0,0.00014375,2]
[353763193,1740017444990,-205.0,0.00014375,2]
[353763194,1740017444999,-205.0,0.00014375,2]
[353763195,1740017445010,-205.0,0.00014375,2]
[353763196,1740017445019,-205.0,0.00014375,2]
[353763197,1740017445029,-205.0,0.00014375,2]
[353763198,1740017445038,-205.0,0.00014375,2]
[353763199,1740017445047,-205.0,0.00014375,2]
[353763200,1740017445057,-205.0,0.00014375,2]
[353763201,1740017445069,-205.0,0.00014375,2]
[353763202,1740017445079,-205.0,0.00014375,2]
[353763203,1740017445089,-205.0,0.00014375,2]
[353763204,1740017445099,-205.0,0.00014375,2]
[353763205,1740017445109,-205.0,0.00014375,2]
[353763206,1740017445119,-205.0,0.00014375,2]
[353763207,1740017445134,-223.0,0.00014375,2]
[353763208,1740017445145,-223.0,0.00014375,2]
[353763209,1740017445155,-223.0,0.00014375,2]
[353763210,1740017445167,-223.0,0.00014375,2]
[353763211,1740017445178,-223.0,0.00014375,2]
[353763212,1740017445189,-223.0,0.00014375,2]
[353763213,1740017445200,-223.0,0.00014375,2]
[353763214,1740017445210,-223.0,0.00014375,2]
[353763215,1740017445220,-223.0,0.00014375,2]
[353763216,1740017445230,-223.0,0.00014375,2]
[353763217,1740017445241,-223.0,0.00014375,2]
[353763218,1740017445252,-223.0,0.00014375,2]
[353763219,1740017445263,-223.0,0.00014375,2]
[353763220,1740017445274,-223.0,0.00014375,2]
[353763222,1740017445284,-213.0,0.00014375,2]
[353763224,1740017445294,-213.0,0.00014375,2]
[353763225,1740017445303,-213.0,0.00014375,2]
[353763226,1740017445317,-213.0,0.00014375,2]
[353763227,1740017445327,-213.0,0.00014375,2]
[353763229,1740017445337,-213.0,0.00014375,2]
[353763231,1740017445348,-213.0,0.00014375,2]
[353763232,1740017445359,-213.0,0.00014375,2]
[353763233,1740017445369,-213.0,0.00014375,2]
[353763234,1740017445380,-213.0,0.00014375,2]
[353763235,1740017445391,-213.0,0.00014375,2]
[353763236,1740017445402,-213.0,0.00014375,2]
[353763237,1740017445413,-213.0,0.00014375,2]
[353763238,1740017445426,-213.0,0.00014375,2]
[353763239,1740017445436,-213.0,0.00014375,2]
[353763240,1740017445445,-213.0,0.00014375,2]
[353763241,1740017445455,-213.0,0.00014375,2]
[353763242,1740017445464,-213.0,0.00014375,2]
[353763243,1740017445474,-213.0,0.00014375,2]
[353763244,1740017445484,-213.0,0.00014375,2]
[353763245,1740017445494,-213.0,0.00014375,2]
[353763246,1740017445503,-213.0,0.00014375,2]
[353763247,1740017445513,-213.0,0.00014375,2]
[353763248,1740017445523,-213.0,0.00014375,2]
[353763249,1740017445532,-213.0,0.00014375,2]
[353763250,1740017445543,-213.0,0.00014375,2]
[353763251,1740017445552,-366.0,0.00014375,2]
[353763252,1740017445562,-366.0,0.00014375,2]
[353763254,1740017445572,-366.0,0.00014375,2]
[353763256,1740017445581,-366.0,0.00014375,2]
[353763258,1740017445592,-366.0,0.00014375,2]
[353763260,1740017445601,-366.0,0.00014375,2]
[353763262,1740017445611,-366.0,0.00014375,2]
[353763264,1740017445620,-366.0,0.00014375,2]
[353763266,1740017445630,-366.0,0.00014375,2]
[353763268,1740017445641,-366.0,0.00014375,2]
[353763270,1740017445650,-366.0,0.00014375,2]
[353763272,1740017445660,-366.0,0.00014375,2]
[353763273,1740017445671,-366.0,0.00014375,2]
[353763274,1740017445682,-366.0,0.00014375,2]
[353763275,1740017445692,-366.0,0.00014375,2]
[353763276,1740017445702,-366.0,0.00014375,2]
[353763277,1740017445712,-366.0,0.00014375,2]
[353763278,1740017445721,-366.0,0.00014375,2]
[353763279,1740017445731,-366.0,0.00014375,2]
[353763280,1740017445740,-366.0,0.00014375,2]
[353763281,1740017445749,-366.0,0.00014375,2]
[353763282,1740017445759,-366.0,0.00014375,2]
[353763283,1740017445773,-366.0,0.00014375,2]
[353763284,1740017445782,-366.0,0.00014375,2]
[353763285,1740017445792,-366.0,0.00014375,2]
[353763286,1740017445955,-366.0,0.00014375,2]
[353763287,1740017445966,-366.0,0.00014375,2]
[353763288,1740017445976,-366.0,0.00014375,2]
[353763289,1740017445986,-366.0,0.00014375,2]
[353763290,1740017445995,-366.0,0.00014375,2]
[353763291,1740017446005,-366.0,0.00014375,2]
[353763292,1740017446015,-213.0,0.00014375,2]
[353763293,1740017446025,-213.0,0.00014375,2]
[353763294,1740017446035,-213.0,0.00014375,2]
[353763295,1740017446044,-213.0,0.00014375,2]
[353763296,1740017446054,-213.0,0.00014375,2]
[353763297,1740017446064,-213.0,0.00014375,2]
[353763298,1740017446073,-213.0,0.00014375,2]
[353763299,1740017446084,-213.0,0.00014375,2]
[353763300,1740017446094,-213.0,0.00014375,2]
[353763301,1740017446103,-213.0,0.00014375,2]
[353763302,1740017446113,-213.0,0.00014375,2]
[353763303,1740017446122,-213.0,0.00014375,2]
[353763304,1740017446133,-213.0,0.00014375,2]
[353763305,1740017446142,-213.0,0.00014375,2]
[353763306,1740017446152,-213.0,0.00014375,2]
[353763307,1740017446161,-213.0,0.00014375,2]
[353763308,1740017446172,-213.0,0.00014375,2]
[353763309,1740017446181,-213.0,0.00014375,2]
[353763310,1740017446190,-213.0,0.00014375,2]
[353763311,1740017446200,-213.0,0.00014375,2]
[353763312,1740017446210,-379.0,0.00014375,2]
[353763313,1740017446219,-379.0,0.00014375,2]
[353763314,1740017446228,-379.0,0.00014375,2]
[353763315,1740017446238,-379.0,0.00014375,2]
[353763316,1740017446247,-379.0,0.00014375,2]
[353763317,1740017446257,-379.0,0.00014375,2]
[353763318,1740017446266,-379.0,0.00014375,2]
[353763319,1740017446276,-379.0,0.00014375,2]
[353763320,1740017446286,-379.0,0.00014375,2]
[353763321,1740017446296,-379.0,0.00014375,2]
[353763322,1740017446305,-379.0,0.00014375,2]
[353763323,1740017446314,-379.0,0.00014375,2]
[353763324,1740017446324,-379.0,0.00014375,2]
[353763325,1740017446334,-379.0,0.00014375,2]
[353763326,1740017446344,-379.0,0.00014375,2]
[353763327,1740017446353,-379.0,0.00014375,2]
[353763328,1740017446363,-379.0,0.00014375,2]
[353763329,1740017446372,-226.0,0.00014375,2]
[353763330,1740017446382,-379.0,0.00014375,2]
[353763331,1740017446391,-379.0,0.00014375,2]
[353763332,1740017446401,-379.0,0.00014375,2]
[353763333,1740017446410,-379.0,0.00014375,2]
[353763334,1740017446421,-379.0,0.00014375,2]
[353763335,1740017446431,-379.0,0.00014375,2]
[353763336,1740017446441,-379.0,0.00014375,2]
[353763337,1740017446451,-151.0,0.000144,2]
[353763338,1740017446461,-500.0,0.00014438,2]
[353763339,1740017446471,-507.53,0.00014438,2]
[353763340,1740017446481,-500.0,0.00014438,2]
[353763341,1740017446491,-735.06,0.00014438,2]
[353763342,1740017446501,-1171.69,0.00014438,2]
[353763343,1740017446511,-871.97,0.00014438,2]
[353763344,1740017446520,-500.0,0.00014438,2]
[353763345,1740017446530,-717.77,0.00014438,2]
[353763346,1740017446539,-567.46,0.00014438,2]
[353763347,1740017446549,-500.0,0.00014438,2]